fUST/lending_fUST_20250822
["ID","MTS","AMOUNT","RATE_DAILY","PERIOD"]
[380486894,1755792645670,-480.0,0.00020128,2]
[380486896,1755792645679,-480.0,0.00020128,2]
[380486897,1755792645688,-480.0,0.00020128,2]
[380486898,1755792645697,-480.0,0.00020128,2]
[380486899,1755792645707,-1039.36,0.00020128,2]
[380486900,1755792645716,-480.0,0.00020128,2]
[380486901,1755792645726,-440.0,0.00020128,2]
[380486902,1755792645735,-461.92907591,0.00020128,2]
[380486903,1755792645745,-1117.72,0.00020128,2]
[380486904,1755792645754,-480.0,0.00020128,2]
[380486905,1755792645764,-480.0,0.00020128,2]
[380486906,1755792645775,-421.40968839,0.00020128,2]
[380486907,1755792645784,-151.0,0.00020128,2]
[380486908,1755792645794,-480.0,0.00020128,2]
[380486909,1755792645803,-480.0,0.00020128,2]
[380486910,1755792645812,-442.25026729,0.00020128,2]
[380486911,1755792645821,-480.0,0.00020128,2]
[380486912,1755792645830,-480.0,0.00020128,2]
[380486913,1755792645839,-151.0,0.00020128,2]
[380486914,1755792645848,-480.0,0.00020128,2]
[380486915,1755792645857,-611.86,0.00020128,2]
[380486916,1755792645866,-480.0,0.00020128,2]
[380486917,1755792645876,-480.0,0.00020128,2]
[380486918,1755792645885,-480.0,0.00020128,2]
[380486919,1755792645895,-480.0,0.00020128,2]
[380486920,1755792645904,-480.0,0.00020128,2]
[380486921,1755792645913,-480.0,0.00020128,2]
[380486922,1755792645922,-480.0,0.00020128,2]
[380486923,1755792645931,-480.0,0.00020128,2]
[380486924,1755792645940,-480.0,0.00020128,2]
[380486925,1755792645949,-151.0,0.00020128,2]
[380486926,1755792645959,-482.9380629,0.00020128,2]
[380486927,1755792645968,-480.0,0.00020128,2]
[380486928,1755792645977,-480.0,0.00020128,2]
[380486929,1755792645986,-293.269847,0.00020128,2]
[380486930,1755792645996,-480.0,0.00020128,2]
[380486931,1755792646005,-480.0,0.00020128,2]
[380486932,1755792646018,-1688.72,0.00020128,2]
[380486933,1755792646029,-480.0,0.00020128,2]
[380486934,1755792646038,-361.70349739,0.00020128,2]
[380486935,1755792646048,-883.28,0.00020128,2]
[380486936,1755792646058,-480.0,0.00020128,2]
[380486938,1755792646067,-480.0,0.00020128,2]
[380486939,1755792646076,-480.0,0.00020128,2]
[380486940,1755792646086,-678.29,0.00020128,2]
[380486941,1755792646095,-805.31,0.00020128,2]
[380486942,1755792646104,-595.32,0.00020128,2]
[380486943,1755792646113,-480.0,0.00020128,2]
[380486944,1755792646122,-480.0,0.00020128,2]
[380486945,1755792646132,-480.0,0.00020128,2]
[380486946,1755792646141,-623.8,0.00020128,2]
[380486947,1755792646151,-480.0,0.00020128,2]
[380486948,1755792646160,-654.21,0.00020128,2]
[380486949,1755792646170,-480.0,0.00020128,2]
[380486950,1755792646179,-480.0,0.00020128,2]
[380486951,1755792646189,-1141.85,0.00020128,2]
[380486953,1755792646198,-480.0,0.00020128,2]
[380486955,1755792646208,-384.78885794,0.00020128,2]
[380486957,1755792646218,-480.0,0.00020128,2]
[380486959,1755792646227,-480.0,0.00020128,2]
[380486960,1755792646236,-480.0,0.00020128,2]
[380486961,1755792646246,-480.0,0.00020128,2]
[380486962,1755792646255,-480.0,0.00020128,2]
[380486963,1755792646265,-480.0,0.00020128,2]
[380486964,1755792646275,-352.84912175,0.00020128,2]
[380486965,1755792646285,-480.0,0.00020128,2]
[380486966,1755792646294,-480.0,0.00020128,2]
[380486967,1755792646304,-480.0,0.00020128,2]
[380486968,1755792646313,-480.0,0.00020128,2]
[380486969,1755792646323,-480.0,0.00020128,2]
[380486970,1755792646335,-151.0,0.00020129,2]
[380486971,1755792646345,-480.0,0.00020129,2]
[380486972,1755792646354,-480.0,0.00020129,2]
[380486973,1755792646364,-2206.27,0.00020129,2]
[380486974,1755792646374,-1199.85,0.00020129,2]
[380486975,1755792646384,-1271.25,0.00020129,2]
[380486976,1755792646393,-534.9,0.00020129,2]
[380486977,1755792646403,-480.0,0.00020129,2]
[380486978,1755792646413,-1930.33,0.00020129,2]
[380486979,1755792646422,-1041.35,0.00020129,2]
[380486980,1755792646432,-524.1,0.00020129,2]
[380486981,1755792646442,-1265.11,0.00020129,2]
[380486982,1755792646451,-557.47421785,0.00020129,2]
[380486983,1755792646460,-539.51,0.00020129,2]
[380486984,1755792646470,-480.0,0.00020129,2]
[380486985,1755792646479,-480.0,0.00020129,2]
[380486986,1755792646488,-480.0,0.00020129,2]
[380486987,1755792646497,-1250.1,0.00020129,2]
[380486988,1755792646506,-480.0,0.00020129,2]
[380486989,1755792646515,-672.29,0.00020129,2]
[380486990,1755792646526,-1361.55,0.00020129,2]
[380486991,1755792646535,-2418.64031247,0.0002013,2]
[380486992,1755792646545,-317.06696093,0.0002013,2]
[380486993,1755792646781,-108.10542325,0.0002013,2]
[380486994,1755792646791,-1605.36,0.0002013,2]
[380486995,1755792646800,-761.9,0.0002013,2]
[380486996,1755792646810,-481.28496555,0.0002013,2]
[380486997,1755792646819,-480.0,0.0002013,2]
[380486998,1755792646828,-480.0,0.0002013,2]
[380486999,1755792646837,-1059.06,0.0002013,2]
[380487000,1755792646847,-630.63,0.0002013,2]
[380487001,1755792646856,-480.0,0.0002013,2]
[380487002,1755792646866,-480.0,0.0002013,2]
[380487003,1755792646875,-403.08093976,0.0002013,2]
[380487004,1755792647039,-461.71991077,0.0002013,2]
[380487005,1755792647050,-480.0,0.0002013,2]
[380487006,1755792647059,-480.0,0.0002013,2]
[380487007,1755792647069,-545.73,0.0002013,2]
[380487008,1755792647079,-1260.8,0.0002013,2]
[380487009,1755792647089,-480.0,0.0002013,2]
[380487010,1755792647099,-480.0,0.0002013,2]
[380487011,1755792647108,-480.0,0.0002013,2]
[380487012,1755792647118,-480.0,0.0002013,2]
[380487013,1755792647126,-480.0,0.0002013,2]
[380487014,1755792647135,-480.0,0.0002013,2]
[380487015,1755792647145,-480.0,0.0002013,2]
[380487016,1755792647155,-562.67,0.0002013,2]
[380487017,1755792647165,-480.0,0.0002013,2]
[380487018,1755792647175,-480.0,0.0002013,2]
[380487019,1755792647184,-480.0,0.0002013,2]
[380487020,1755792647194,-480.0,0.0002013,2]
[380487021,1755792647203,-480.0,0.0002013,2]
[380487022,1755792647213,-480.0,0.0002013,2]
[380487023,1755792647223,-480.0,0.0002013,2]
[380487024,1755792647232,-488.08666037,0.0002013,2]
[380487025,1755792647242,-491.57,0.0002013,2]
[380487026,1755792647251,-485.26,0.0002013,2]
[380487027,1755792647260,-480.0,0.0002013,2]
[380487028,1755792647269,-480.0,0.0002013,2]
[380487029,1755792647281,-628.95,0.0002013,2]
[380487030,1755792647290,-480.0,0.0002013,2]
[380487031,1755792647300,-384.00442967,0.0002013,2]
[380487032,1755792647310,-480.0,0.0002013,2]
[380487033,1755792647319,-480.0,0.0002013,2]
[380487034,1755792647329,-480.0,0.0002013,2]
[380487035,1755792647342,-480.0,0.0002013,2]
[380487036,1755792647351,-113.78767063,0.0002013,2]
[380487037,1755792647363,-422.45232937,0.0002013,2]
[380487038,1755792647373,-32.73016607,0.0002013,2]
[380487040,1755792647384,-447.26983393,0.0002013,2]
[380487041,1755792647394,-480.0,0.0002013,2]
[380487043,1755792647403,-481.14,0.0002013,2]
[380487045,1755792647414,-480.0,0.0002013,2]
[380487048,1755792647425,-480.0,0.0002013,2]
[380487049,1755792647435,-542.76,0.0002013,2]
[380487051,1755792647447,-87.27286206,0.0002013,2]
[380487054,1755792647459,-392.72713794,0.0002013,2]
[380487056,1755792647468,-259.9335635,0.0002013,2]
[380487058,1755792647480,-220.0664365,0.0002013,2]
[380487059,1755792647489,-480.0,0.0002013,2]
[380487060,1755792647499,-876.26,0.0002013,2]
[380487061,1755792647510,-1050.92,0.0002013,2]
[380487062,1755792647519,-969.2,0.0002013,2]
[380487063,1755792647530,-480.0,0.0002013,2]
[380487064,1755792647540,-500.0,0.0002013,2]
[380487065,1755792647550,-1455.35,0.0002013,2]
[380487066,1755792647559,-480.0,0.0002013,2]
[380487067,1755792647569,-480.0,0.0002013,2]
[380487068,1755792647578,-480.0,0.0002013,2]
[380487069,1755792647588,-440.0,0.0002013,2]
[380487070,1755792647598,-727.67,0.0002013,2]
[380487071,1755792647607,-480.0,0.0002013,2]
[380487072,1755792647617,-480.0,0.0002013,2]
[380487073,1755792647627,-480.0,0.0002013,2]
[380487074,1755792647637,-605.54,0.0002013,2]
[380487075,1755792647647,-419.06560308,0.0002013,2]
[380487076,1755792647657,-480.0,0.0002013,2]
[380487077,1755792647667,-480.0,0.0002013,2]
[380487078,1755792647676,-37.58736012,0.0002013,2]
[380487079,1755792647689,-442.41263988,0.0002013,2]
[380487080,1755792647700,-480.0,0.0002013,2]
[380487081,1755792647710,-480.0,0.0002013,2]
[380487082,1755792647719,-480.0,0.0002013,2]
[380487083,1755792647730,-480.0,0.0002013,2]
[380487084,1755792647739,-920.15,0.0002013,2]
[380487085,1755792647749,-480.0,0.0002013,2]
[380487086,1755792647759,-480.0,0.0002013,2]
[380487087,1755792647770,-480.0,0.0002013,2]
[380487088,1755792647781,-902.24,0.0002013,2]
[380487089,1755792647791,-480.0,0.0002013,2]
[380487090,1755792647801,-480.0,0.0002013,2]
[380487091,1755792647811,-480.0,0.0002013,2]
[380487092,1755792647821,-480.0,0.0002013,2]
[380487093,1755792647831,-873.16,0.0002013,2]
[380487094,1755792647840,-480.0,0.0002013,2]
[380487096,1755792647850,-762.55,0.0002013,2]
[380487098,1755792647861,-2255.59,0.0002013,2]
[380487100,1755792647871,-480.0,0.0002013,2]
[380487102,1755792647881,-480.0,0.0002013,2]
[380487104,1755792647891,-480.0,0.0002013,2]
[380487106,1755792647901,-480.0,0.0002013,2]
[380487108,1755792647911,-480.0,0.0002013,2]
[380487110,1755792647920,-480.0,0.0002013,2]
[380487112,1755792647930,-628.03,0.0002013,2]
[380487114,1755792647939,-480.0,0.0002013,2]
[380487116,1755792647948,-381.7892844,0.0002013,2]
[380487118,1755792647958,-480.0,0.0002013,2]
[380487120,1755792647969,-676.81,0.0002013,2]
[380487122,1755792647978,-480.0,0.0002013,2]
[380487124,1755792647987,-1194.08,0.0002013,2]
[380487126,1755792647997,-480.0,0.0002013,2]
[380487128,1755792648007,-480.0,0.0002013,2]
[380487130,1755792648016,-193.23116251,0.0002013,2]
[380487131,1755792648028,-494.32883749,0.0002013,2]
[380487133,1755792648037,-566.18,0.0002013,2]
[380487135,1755792648047,-480.0,0.0002013,2]
[380487137,1755792648057,-621.55,0.0002013,2]
[380487139,1755792648066,-622.62,0.0002013,2]
[380487141,1755792648076,-841.45,0.0002013,2]
[380487143,1755792648085,-720.27,0.0002013,2]
[380487145,1755792648095,-832.27,0.0002013,2]
[380487147,1755792648105,-151.0,0.0002013,2]
[380487149,1755792648115,-798.23,0.0002013,2]
[380487151,1755792648125,-480.0,0.0002013,2]
[380487152,1755792648134,-481.15,0.0002013,2]
[380487155,1755792648144,-629.95232646,0.00020164,2]
[380487156,1755792648155,-387.19224661,0.00020173,2]
[380487159,1755792648168,-112.80775339,0.00020173,2]
[380487161,1755792648177,-502.31631118,0.00020173,2]
[380487162,1755792648187,-500.0,0.00020173,2]
[380487164,1755792648196,-500.0,0.00020173,2]
[380487166,1755792648206,-269.95031563,0.00020173,2]
[380487168,1755792648216,-64.92562908,0.00020173,2]
[380487184,1755792648565,-435.07437092,0.00020173,2]
[380487186,1755792648574,-500.0,0.00020173,2]
[380487188,1755792648584,-500.0,0.00020173,2]
[380487189,1755792648593,-248.07351204,0.00020173,2]
[380487190,1755792648602,-500.79067669,0.00020173,2]
[380487191,1755792648611,-500.0,0.00020173,2]
[380487192,1755792648622,-500.0,0.00020173,2]
[380487193,1755792648631,-513.18276814,0.00020173,2]
[380487194,1755792648641,-500.0,0.00020173,2]
[380487195,1755792648650,-500.0,0.00020173,2]
[380487196,1755792648659,-500.0,0.00020173,2]
[380487197,1755792648670,-262.98103761,0.00020173,2]
[380487198,1755792648679,-500.0,0.00020173,2]
[380487199,1755792648689,-500.0,0.00020173,2]
[380487200,1755792648698,-151.0,0.00020173,2]
[380487201,1755792648708,-176.031406,0.00020173,2]
[380487202,1755792648718,-176.031406,0.00020173,2]
[380487203,1755792648727,-176.031406,0.00020173,2]
[380487204,1755792648737,-176.031406,0.00020173,2]
[380487205,1755792648746,-151.0,0.00020173,2]
[380487206,1755792648756,-337.984543,0.00020187,2]
[380487207,1755792648765,-14197.03162396,0.00020252,2]
[380487208,1755792648775,-341.62846084,0.000203,2]
[380487209,1755792648785,-480.0,0.000203,2]
[380487210,1755792648794,-1033.95,0.000203,2]
[380487211,1755792648804,-1383.74,0.000203,2]
[380487212,1755792648813,-1416.97,0.000203,2]
[380487213,1755792648822,-1731.53,0.000203,2]
[380487214,1755792648832,-4873.19,0.000203,2]
[380487215,1755792648841,-480.0,0.000203,2]
[380487216,1755792648850,-629.95232646,0.00020301,2]
[380487217,1755792648860,-480.0,0.00020301,2]
[380487218,1755792648869,-9261.16,0.00020301,2]
[380487219,1755792648878,-480.0,0.00020301,2]
[380487220,1755792648887,-151.0,0.00020301,2]
[380487221,1755792648896,-520.08,0.00020301,2]
[380487222,1755792648906,-480.0,0.00020301,2]
[380487223,1755792648915,-5781.11,0.00020301,2]
[380487224,1755792648925,-845.86,0.00020301,2]
[380487225,1755792648935,-2462.84,0.00020301,2]
[380487226,1755792648944,-1476.22946866,0.00020301,2]
[380487227,1755792648961,-168.83053134,0.00020301,2]
[380487228,1755792648971,-102.87706864,0.00020301,2]
[380487229,1755792649163,-480.0,0.00019853,2]
[380487230,1755792649173,-681.76293136,0.00020301,2]
[380487231,1755792649183,-6568.32,0.00020301,2]
[380487232,1755792649193,-564.77,0.00020301,2]
[380487233,1755792649203,-480.0,0.00020301,2]
[380487234,1755792649212,-9851.75,0.00020301,2]
[380487235,1755792649221,-5188.11,0.00020301,2]
[380487236,1755792649231,-1689.92,0.00020301,2]
[380487237,1755792649240,-2138.03,0.00020301,2]
[380487238,1755792649250,-480.0,0.00020301,2]
[380487239,1755792649259,-480.0,0.00020303,2]
[380487240,1755792649269,-480.0,0.00020303,2]
[380487241,1755792649280,-480.0,0.00020303,2]
[380487242,1755792649290,-480.0,0.00020303,2]
[380487243,1755792649300,-1568.13,0.00020303,2]
[380487244,1755792649311,-480.0,0.00020303,2]
[380487245,1755792649321,-480.0,0.00020303,2]
[380487246,1755792649332,-1127.79,0.00020303,2]
[380487247,1755792649344,-225.65386323,0.00020303,2]
[380487248,1755792649354,-480.0,0.00020303,2]
[380487249,1755792649363,-480.0,0.00020303,2]
[380487250,1755792649372,-480.0,0.00020303,2]
[380487251,1755792649383,-480.0,0.00020303,2]
[380487252,1755792649392,-480.0,0.00020303,2]
[380487253,1755792649401,-924.15,0.00020303,2]
[380487254,1755792649414,-480.0,0.00020303,2]
[380487255,1755792649424,-673.15,0.00020303,2]
[380487256,1755792649433,-613.82,0.00020303,2]
[380487257,1755792649443,-399.65699645,0.00020303,2]
[380487258,1755792649453,-640.43,0.00020303,2]
[380487259,1755792649462,-480.0,0.00020303,2]
[380487260,1755792649472,-480.0,0.00020303,2]
[380487261,1755792649482,-480.0,0.00020303,2]
[380487262,1755792649491,-631.43,0.00020303,2]
[380487263,1755792649501,-488.68,0.00020303,2]
[380487264,1755792649510,-781.49,0.00020303,2]
[380487265,1755792649519,-480.0,0.00020303,2]
[380487266,1755792649530,-606.04,0.00020303,2]
[380487267,1755792649540,-480.0,0.00020303,2]
[380487268,1755792649550,-480.0,0.00020303,2]
[380487269,1755792649560,-979.74620896,0.00020303,2]
[380487270,1755792649572,-3162.59379104,0.00020303,2]
[380487271,1755792649581,-742.9,0.00020303,2]
[380487272,1755792649590,-480.0,0.00020303,2]
[380487273,1755792649600,-2445.24,0.00020303,2]
[380487274,1755792649609,-1844.75,0.00020303,2]
[380487275,1755792649618,-639.64,0.00020303,2]
[380487276,1755792649628,-2736.27,0.00020303,2]
[380487277,1755792649637,-151.0,0.00020303,2]
[380487278,1755792649646,-1519.12,0.00020303,2]
[380487279,1755792649655,-151.0,0.00020303,2]
[380487280,1755792649664,-1026.67,0.00020303,2]
[380487281,1755792649674,-2112.29,0.00020303,2]
[380487282,1755792649683,-753.81,0.00020303,2]
[380487283,1755792649693,-4012.71620896,0.00020303,2]
[380487284,1755792649704,-514.97865653,0.00020303,2]
[380487285,1755792649716,-805.98513451,0.00020303,2]
[380487286,1755792649726,-2206.67,0.00020303,2]
[380487287,1755792649737,-480.0,0.00020303,2]
[380487288,1755792649747,-623.89,0.00020303,2]
[380487289,1755792649757,-78.11207781,0.00020303,2]
[380487290,1755792650066,-606.64792219,0.00020303,2]
[380487291,1755792650227,-480.0,0.00020303,2]
[380487292,1755792650237,-878.72,0.00020303,2]
[380487293,1755792650246,-511.33,0.00020303,2]
[380487294,1755792650255,-480.0,0.00020303,2]
[380487295,1755792650265,-480.0,0.00020303,2]
[380487296,1755792650275,-480.0,0.00020303,2]
[380487297,1755792650284,-480.0,0.00020303,2]
[380487298,1755792650293,-540.9,0.00020303,2]
[380487299,1755792650303,-480.0,0.00020303,2]
[380487300,1755792650312,-480.0,0.00020303,2]
[380487301,1755792650321,-930.22,0.00020303,2]
[380487302,1755792650332,-480.0,0.00020303,2]
[380487303,1755792650343,-2708.1,0.00020303,2]
[380487304,1755792650352,-480.0,0.00020303,2]
[380487305,1755792650361,-2394.57,0.00020303,2]
[380487306,1755792650370,-393.10043915,0.00020303,2]
[380487307,1755792650381,-811.16,0.00020303,2]
[380487308,1755792650390,-1261.19,0.00020303,2]
[380487309,1755792650399,-1139.83,0.00020303,2]
[380487310,1755792650412,-2770.91,0.00020303,2]
[380487311,1755792650422,-4151.19,0.00020303,2]
[380487312,1755792650431,-725.82,0.00020303,2]
[380487313,1755792650440,-480.0,0.00020303,2]
[380487314,1755792650449,-627.54,0.00020303,2]
[380487315,1755792650458,-480.0,0.00020303,2]
[380487316,1755792650471,-480.0,0.00020303,2]
[380487317,1755792650480,-506.34,0.00020303,2]
[380487318,1755792650490,-875.12,0.00020303,2]
[380487319,1755792650499,-668.99,0.00020303,2]
[380487320,1755792650508,-1286.17,0.00020303,2]
[380487321,1755792650517,-151.0,0.00020303,2]
[380487322,1755792650529,-151.0,0.000204,3]
[380487323,1755792650539,-1752.64,0.000204,2]
[380487324,1755792650548,-480.0,0.000204,2]
[380487325,1755792650558,-2281.05,0.000204,2]
[380487326,1755792650567,-1729.33,0.000204,2]
[380487327,1755792650577,-551.01,0.000204,2]
[380487328,1755792650586,-893.08,0.000204,2]
[380487329,1755792650596,-1122.39,0.000204,2]
[380487330,1755792650605,-480.0,0.000204,2]
[380487331,1755792650614,-972.84,0.00020401,2]
[380487332,1755792650622,-545.17,0.00020401,2]
[380487333,1755792650631,-2108.19,0.00020401,2]
[380487334,1755792650640,-1319.52,0.00020401,2]
[380487335,1755792650649,-480.0,0.00020401,2]
[380487336,1755792650658,-480.0,0.00020401,2]
[380487337,1755792650667,-508.66,0.00020401,2]
[380487338,1755792650675,-1419.25,0.00020401,2]
[380487339,1755792650684,-1217.83,0.00020401,2]
[380487340,1755792650693,-2125.29,0.00020401,2]
[380487341,1755792650702,-480.0,0.00020401,2]
[380487342,1755792650711,-151.0,0.00020401,2]
[380487343,1755792650720,-480.0,0.00020401,2]
[380487344,1755792650729,-480.0,0.00020401,2]
[380487345,1755792650738,-592.9,0.00020401,2]
[380487346,1755792650747,-151.0,0.00020401,2]
[380487347,1755792650756,-480.0,0.00020401,2]
[380487348,1755792650764,-480.0,0.00020401,2]
[380487349,1755792650773,-480.0,0.00020401,2]
[380487350,1755792650786,-693.22,0.00020401,2]
[380487351,1755792650795,-704.43,0.00020401,2]
[380487352,1755792650804,-593.79,0.00020401,2]
[380487353,1755792650814,-2629.88,0.00020401,2]
[380487354,1755792650823,-480.0,0.00020401,2]
[380487355,1755792650832,-480.0,0.00020401,2]
[380487356,1755792650842,-480.0,0.00020401,2]
[380487357,1755792650851,-871.64,0.00020401,2]
[380487358,1755792650860,-1047.54,0.00020401,2]
[380487359,1755792650869,-151.0,0.00020401,2]
[380487360,1755792650878,-480.0,0.00020401,2]
[380487361,1755792650887,-665.21,0.00020401,2]
[380487362,1755792650896,-838.72,0.00020401,2]
[380487363,1755792650905,-480.0,0.00020401,2]
[380487364,1755792650914,-1951.02,0.00020401,2]
[380487365,1755792650923,-575.49800909,0.00020401,2]
[380487366,1755792650932,-1225.69,0.00020401,2]
[380487367,1755792650941,-480.0,0.00020401,2]
[380487368,1755792650950,-1148.05,0.00020401,2]
[380487369,1755792650959,-480.0,0.00020401,2]
[380487370,1755792650969,-905.9,0.00020401,2]
[380487371,1755792650979,-480.0,0.00020401,2]
[380487372,1755792650988,-480.0,0.00020401,2]
[380487373,1755792650999,-480.0,0.00020401,2]
[380487374,1755792651008,-480.0,0.00020401,2]
[380487375,1755792651018,-480.0,0.00020401,2]
[380487376,1755792651029,-1201.51,0.00020401,2]
[380487377,1755792651038,-480.0,0.00020401,2]
[380487378,1755792651048,-483.69763537,0.00020401,2]
[380487379,1755792651057,-991.42,0.00020401,2]
[380487380,1755792651066,-635.38,0.00020401,2]
[380487381,1755792651076,-2580.53,0.00020401,2]
[380487382,1755792651086,-2681.63,0.00020401,2]
[380487383,1755792651096,-611.40877818,0.00020401,2]
[380487384,1755792651105,-480.0,0.00020401,2]
[380487385,1755792651115,-3086.85,0.00020401,2]
[380487386,1755792651125,-1124.65,0.00020401,2]
[380487387,1755792651134,-2333.17,0.00020401,2]
[380487388,1755792651144,-480.0,0.00020401,2]
[380487389,1755792651154,-234.58460698,0.00020401,2]
[380487390,1755792651164,-4745.25,0.00020401,2]
[380487391,1755792651174,-5463.78,0.00020401,2]
[380487392,1755792651183,-480.0,0.00020401,2]
[380487393,1755792651193,-176.031406,0.00020401,2]
[380487394,1755792651203,-2232.6,0.00020401,2]
[380487395,1755792651212,-176.031406,0.00020401,2]
[380487396,1755792651222,-176.031406,0.00020401,2]
[380487397,1755792651232,-176.031406,0.00020401,2]
[380487398,1755792651241,-7051.64,0.00020401,2]
[380487399,1755792651251,-16556.38,0.00020401,2]
[380487400,1755792651261,-496.36,0.00020401,2]
[380487401,1755792651279,-913.33,0.00020401,2]
[380487402,1755792651289,-1041.52,0.00020401,2]
[380487403,1755792651298,-151.0,0.00020401,2]
[380487404,1755792651308,-4629.04,0.00020401,2]
[380487405,1755792651317,-15911.18,0.00020401,2]
[380487406,1755792651328,-904.6,0.00020401,2]
[380487407,1755792651341,-576.76,0.00020401,2]
[380487408,1755792651350,-1009.82,0.00020401,2]
[380487409,1755792651360,-3188.4,0.00020401,2]
[380487410,1755792651369,-2295.04,0.00020401,2]
[380487411,1755792651380,-12140.01,0.00020401,2]
[380487412,1755792651390,-151.0,0.00020401,2]
[380487413,1755792651400,-5066.31,0.00020401,2]
[380487414,1755792651412,-1020.76,0.00020401,2]
[380487415,1755792651422,-826.64,0.00020401,2]
[380487416,1755792651432,-1220.33,0.00020401,2]
[380487417,1755792651442,-480.0,0.00020401,2]
[380487418,1755792651452,-736.95,0.00020402,2]
[380487419,1755792651462,-480.0,0.00020402,2]
[380487420,1755792651471,-480.0,0.00020402,2]
[380487421,1755792651481,-480.0,0.00020402,2]
[380487422,1755792651490,-480.0,0.00020402,2]
[380487423,1755792651500,-480.0,0.00020402,2]
[380487424,1755792651510,-151.0,0.00020402,2]
[380487425,1755792651519,-480.0,0.00020402,2]
[380487426,1755792651530,-480.0,0.00020402,2]
[380487427,1755792651539,-422.55965697,0.00020402,2]
[380487428,1755792651549,-480.0,0.00020402,2]
[380487429,1755792651559,-660.39,0.00020402,2]
[380487430,1755792651568,-420.0,0.00020402,2]
[380487431,1755792651577,-542.10159793,0.00020402,2]
[380487432,1755792651586,-480.0,0.00020402,2]
[380487433,1755792651596,-480.0,0.00020402,2]
[380487434,1755792651606,-581.36,0.00020402,2]
[380487435,1755792651615,-480.0,0.00020402,2]
[380487436,1755792651624,-1483.21,0.00020402,2]
[380487437,1755792651634,-480.0,0.00020402,2]
[380487438,1755792651644,-906.14,0.00020402,2]
[380487439,1755792651654,-461.48171064,0.00020402,2]
[380487440,1755792651663,-375.10880713,0.00020402,2]
[380487441,1755792651673,-480.0,0.00020402,2]
[380487442,1755792651682,-480.0,0.00020402,2]
[380487443,1755792651692,-1039.36,0.00020402,2]
[380487444,1755792651701,-480.0,0.00020402,2]
[380487445,1755792651711,-1117.72,0.00020402,2]
[380487446,1755792651720,-480.0,0.00020402,2]
[380487447,1755792651729,-480.0,0.00020402,2]
[380487448,1755792651739,-480.0,0.00020402,2]
[380487449,1755792651748,-480.0,0.00020402,2]
[380487450,1755792651757,-480.0,0.00020402,2]
[380487451,1755792651767,-480.0,0.00020402,2]
[380487452,1755792651777,-480.0,0.00020402,2]
[380487453,1755792651786,-611.86,0.00020402,2]
[380487454,1755792651796,-480.0,0.00020402,2]
[380487455,1755792651806,-480.0,0.00020402,2]
[380487456,1755792651815,-305.23063181,0.00020402,2]
[380487458,1755792651824,-480.0,0.00020402,2]
[380487460,1755792651832,-480.0,0.00020402,2]
[380487462,1755792651842,-480.0,0.00020402,2]
[380487464,1755792651851,-480.0,0.00020402,2]
[380487466,1755792651861,-480.0,0.00020402,2]
[380487468,1755792651870,-480.0,0.00020402,2]